Workbook

Sheet Звіт про продаж продуктів
B1: Звіт про продаж товарів
B20: Товари

Sheet Дані за минулі періоди
B1: Прейскуранти на товари за минулі періоди та продажі
B3: Код товару | C3: Назва товару | D3: Дата ціни | E3: Роздрібна ціна за одиницю товару | F3: Гуртова ціна за одиницю товару* | G3: Продано одиниць (роздріб) | H3: Продано одиниць (гурт) | I3: Загальний обсяг продажів (кількість) | J3: Загальний обсяг продажів (грн.)
B4: 5 | C4: =IFERROR(IF(tblЗбут[[#This Row],[Код товару]]<>"",VLOOKUP(tblЗбут[Код товару],tblПродукти[[Код товару]:[Назва]],2,FALSE),""),"Невідомий ідентифікатор продукту") -> Шорти | D4: 2012-01-01 | E4: 20 | F4: 20₴ | G4: 629 | H4: 1,254 | I4: =tblЗбут[[#This Row],[Продано одиниць (роздріб)]]+tblЗбут[[#This Row],[Продано одиниць (гурт)]] -> 1,883 | J4: =tblЗбут[[#This Row],[Продано одиниць (роздріб)]]*tblЗбут[[#This Row],[Роздрібна ціна за одиницю товару]]+tblЗбут[[#This Row],[Продано одиниць (гурт)]]*tblЗбут[[#This Row],[Гуртова ціна за одиницю товару*]] -> 37,660₴
B5: 1 | C5: =IFERROR(IF(tblЗбут[[#This Row],[Код товару]]<>"",VLOOKUP(tblЗбут[Код товару],tblПродукти[[Код товару]:[Назва]],2,FALSE),""),"Невідомий ідентифікатор продукту") -> Сорочки | D5: 2012-01-01 | E5: 88 | F5: 54₴ | G5: 734 | H5: 1,427 | I5: =tblЗбут[[#This Row],[Продано одиниць (роздріб)]]+tblЗбут[[#This Row],[Продано одиниць (гурт)]] -> 2,161 | J5: =tblЗбут[[#This Row],[Продано одиниць (роздріб)]]*tblЗбут[[#This Row],[Роздрібна ціна за одиницю товару]]+tblЗбут[[#This Row],[Продано одиниць (гурт)]]*tblЗбут[[#This Row],[Гуртова ціна за одиницю товару*]] -> 141,650₴
B6: 2 | C6: =IFERROR(IF(tblЗбут[[#This Row],[Код товару]]<>"",VLOOKUP(tblЗбут[Код товару],tblПродукти[[Код товару]:[Назва]],2,FALSE),""),"Невідомий ідентифікатор продукту") -> Сандалі | D6: 2012-01-01 | E6: 70 | F6: 44₴ | G6: 744 | H6: 1,043 | I6: =tblЗбут[[#This Row],[Продано одиниць (роздріб)]]+tblЗбут[[#This Row],[Продано одиниць (гурт)]] -> 1,787 | J6: =tblЗбут[[#This Row],[Продано одиниць (роздріб)]]*tblЗбут[[#This Row],[Роздрібна ціна за одиницю товару]]+tblЗбут[[#This Row],[Продано одиниць (гурт)]]*tblЗбут[[#This Row],[Гуртова ціна за одиницю товару*]] -> 97,972₴
B7: 3 | C7: =IFERROR(IF(tblЗбут[[#This Row],[Код товару]]<>"",VLOOKUP(tblЗбут[Код товару],tblПродукти[[Код товару]:[Назва]],2,FALSE),""),"Невідомий ідентифікатор продукту") -> Парасольки | D7: 2012-01-01 | E7: 63 | F7: 44₴ | G7: 681 | H7: 1,523 | I7: =tblЗбут[[#This Row],[Продано одиниць (роздріб)]]+tblЗбут[[#This Row],[Продано одиниць (гурт)]] -> 2,204 | J7: =tblЗбут[[#This Row],[Продано одиниць (роздріб)]]*tblЗбут[[#This Row],[Роздрібна ціна за одиницю товару]]+tblЗбут[[#This Row],[Продано одиниць (гурт)]]*tblЗбут[[#This Row],[Гуртова ціна за одиницю товару*]] -> 109,915₴
B8: 4 | C8: =IFERROR(IF(tblЗбут[[#This Row],[Код товару]]<>"",VLOOKUP(tblЗбут[Код товару],tblПродукти[[Код товару]:[Назва]],2,FALSE),""),"Невідомий ідентифікатор продукту") -> Пляшки для води | D8: 2012-01-01 | E8: 35 | F8: 27₴ | G8: 602 | H8: 1,822 | I8: =tblЗбут[[#This Row],[Продано одиниць (роздріб)]]+tblЗбут[[#This Row],[Продано одиниць (гурт)]] -> 2,424 | J8: =tblЗбут[[#This Row],[Продано одиниць (роздріб)]]*tblЗбут[[#This Row],[Роздрібна ціна за одиницю товару]]+tblЗбут[[#This Row],[Продано одиниць (гурт)]]*tblЗбут[[#This Row],[Гуртова ціна за одиницю товару*]] -> 70,264₴
B9: 1 | C9: =IFERROR(IF(tblЗбут[[#This Row],[Код товару]]<>"",VLOOKUP(tblЗбут[Код товару],tblПродукти[[Код товару]:[Назва]],2,FALSE),""),"Невідомий ідентифікатор продукту") -> Сорочки | D9: 2012-02-01 | E9: 55 | F9: 44₴ | G9: 678 | H9: 1,515 | I9: =tblЗбут[[#This Row],[Продано одиниць (роздріб)]]+tblЗбут[[#This Row],[Продано одиниць (гурт)]] -> 2,193 | J9: =tblЗбут[[#This Row],[Продано одиниць (роздріб)]]*tblЗбут[[#This Row],[Роздрібна ціна за одиницю товару]]+tblЗбут[[#This Row],[Продано одиниць (гурт)]]*tblЗбут[[#This Row],[Гуртова ціна за одиницю товару*]] -> 103,950₴
B10: 2 | C10: =IFERROR(IF(tblЗбут[[#This Row],[Код товару]]<>"",VLOOKUP(tblЗбут[Код товару],tblПродукти[[Код товару]:[Назва]],2,FALSE),""),"Невідомий ідентифікатор продукту") -> Сандалі | D10: 2012-02-01 | E10: 83 | F10: 54₴ | G10: 753 | H10: 1,005 | I10: =tblЗбут[[#This Row],[Продано одиниць (роздріб)]]+tblЗбут[[#This Row],[Продано одиниць (гурт)]] -> 1,758 | J10: =tblЗбут[[#This Row],[Продано одиниць (роздріб)]]*tblЗбут[[#This Row],[Роздрібна ціна за одиницю товару]]+tblЗбут[[#This Row],[Продано одиниць (гурт)]]*tblЗбут[[#This Row],[Гуртова ціна за одиницю товару*]] -> 116,769₴
B11: 3 | C11: =IFERROR(IF(tblЗбут[[#This Row],[Код товару]]<>"",VLOOKUP(tblЗбут[Код товару],tblПродукти[[Код товару]:[Назва]],2,FALSE),""),"Невідомий ідентифікатор продукту") -> Парасольки | D11: 2012-02-01 | E11: 34 | F11: 34₴ | G11: 986 | H11: 1,069 | I11: =tblЗбут[[#This Row],[Продано одиниць (роздріб)]]+tblЗбут[[#This Row],[Продано одиниць (гурт)]] -> 2,055 | J11: =tblЗбут[[#This Row],[Продано одиниць (роздріб)]]*tblЗбут[[#This Row],[Роздрібна ціна за одиницю товару]]+tblЗбут[[#This Row],[Продано одиниць (гурт)]]*tblЗбут[[#This Row],[Гуртова ціна за одиницю товару*]] -> 69,870₴
B12: 4 | C12: =IFERROR(IF(tblЗбут[[#This Row],[Код товару]]<>"",VLOOKUP(tblЗбут[Код товару],tblПродукти[[Код товару]:[Назва]],2,FALSE),""),"Невідомий ідентифікатор продукту") -> Пляшки для води | D12: 2012-02-01 | E12: 35 | F12: 25₴ | G12: 848 | H12: 1,211 | I12: =tblЗбут[[#This Row],[Продано одиниць (роздріб)]]+tblЗбут[[#This Row],[Продано одиниць (гурт)]] -> 2,059 | J12: =tblЗбут[[#This Row],[Продано одиниць (роздріб)]]*tblЗбут[[#This Row],[Роздрібна ціна за одиницю товару]]+tblЗбут[[#This Row],[Продано одиниць (гурт)]]*tblЗбут[[#This Row],[Гуртова ціна за одиницю товару*]] -> 59,955₴
B13: 5 | C13: =IFERROR(IF(tblЗбут[[#This Row],[Код товару]]<>"",VLOOKUP(tblЗбут[Код товару],tblПродукти[[Код товару]:[Назва]],2,FALSE),""),"Невідомий ідентифікатор продукту") -> Шорти | D13: 2012-02-01 | E13: 41 | F13: 38₴ | G13: 980 | H13: 1,330 | I13: =tblЗбут[[#This Row],[Продано одиниць (роздріб)]]+tblЗбут[[#This Row],[Продано одиниць (гурт)]] -> 2,310 | J13: =tblЗбут[[#This Row],[Продано одиниць (роздріб)]]*tblЗбут[[#This Row],[Роздрібна ціна за одиницю товару]]+tblЗбут[[#This Row],[Продано одиниць (гурт)]]*tblЗбут[[#This Row],[Гуртова ціна за одиницю товару*]] -> 90,720₴
B14: 1 | C14: =IFERROR(IF(tblЗбут[[#This Row],[Код товару]]<>"",VLOOKUP(tblЗбут[Код товару],tblПродукти[[Код товару]:[Назва]],2,FALSE),""),"Невідомий ідентифікатор продукту") -> Сорочки | D14: 2012-02-29 | E14: 27 | F14: 18₴ | G14: 533 | H14: 1,936 | I14: =tblЗбут[[#This Row],[Продано одиниць (роздріб)]]+tblЗбут[[#This Row],[Продано одиниць (гурт)]] -> 2,469 | J14: =tblЗбут[[#This Row],[Продано одиниць (роздріб)]]*tblЗбут[[#This Row],[Роздрібна ціна за одиницю товару]]+tblЗбут[[#This Row],[Продано одиниць (гурт)]]*tblЗбут[[#This Row],[Гуртова ціна за одиницю товару*]] -> 49,239₴
B15: 2 | C15: =IFERROR(IF(tblЗбут[[#This Row],[Код товару]]<>"",VLOOKUP(tblЗбут[Код товару],tblПродукти[[Код товару]:[Назва]],2,FALSE),""),"Невідомий ідентифікатор продукту") -> Сандалі | D15: 2012-02-29 | E15: 38 | F15: 28₴ | G15: 952 | H15: 1,512 | I15: =tblЗбут[[#This Row],[Продано одиниць (роздріб)]]+tblЗбут[[#This Row],[Продано одиниць (гурт)]] -> 2,464 | J15: =tblЗбут[[#This Row],[Продано одиниць (роздріб)]]*tblЗбут[[#This Row],[Роздрібна ціна за одиницю товару]]+tblЗбут[[#This Row],[Продано одиниць (гурт)]]*tblЗбут[[#This Row],[Гуртова ціна за одиницю товару*]] -> 78,512₴
B16: 3 | C16: =IFERROR(IF(tblЗбут[[#This Row],[Код товару]]<>"",VLOOKUP(tblЗбут[Код товару],tblПродукти[[Код товару]:[Назва]],2,FALSE),""),"Невідомий ідентифікатор продукту") -> Парасольки | D16: 2012-02-29 | E16: 92 | F16: 92₴ | G16: 956 | H16: 1,266 | I16: =tblЗбут[[#This Row],[Продано одиниць (роздріб)]]+tblЗбут[[#This Row],[Продано одиниць (гурт)]] -> 2,222 | J16: =tblЗбут[[#This Row],[Продано одиниць (роздріб)]]*tblЗбут[[#This Row],[Роздрібна ціна за одиницю товару]]+tblЗбут[[#This Row],[Продано одиниць (гурт)]]*tblЗбут[[#This Row],[Гуртова ціна за одиницю товару*]] -> 204,424₴
B17: 4 | C17: =IFERROR(IF(tblЗбут[[#This Row],[Код товару]]<>"",VLOOKUP(tblЗбут[Код товару],tblПродукти[[Код товару]:[Назва]],2,FALSE),""),"Невідомий ідентифікатор продукту") -> Пляшки для води | D17: 2012-02-29 | E17: 43 | F17: 36₴ | G17: 952 | H17: 1,390 | I17: =tblЗбут[[#This Row],[Продано одиниць (роздріб)]]+tblЗбут[[#This Row],[Продано одиниць (гурт)]] -> 2,342 | J17: =tblЗбут[[#This Row],[Продано одиниць (роздріб)]]*tblЗбут[[#This Row],[Роздрібна ціна за одиницю товару]]+tblЗбут[[#This Row],[Продано одиниць (гурт)]]*tblЗбут[[#This Row],[Гуртова ціна за одиницю товару*]] -> 90,976₴
B18: 5 | C18: =IFERROR(IF(tblЗбут[[#This Row],[Код товару]]<>"",VLOOKUP(tblЗбут[Код товару],tblПродукти[[Код товару]:[Назва]],2,FALSE),""),"Невідомий ідентифікатор продукту") -> Шорти | D18: 2012-02-29 | E18: 98 | F18: 73₴ | G18: 530 | H18: 1,452 | I18: =tblЗбут[[#This Row],[Продано одиниць (роздріб)]]+tblЗбут[[#This Row],[Продано одиниць (гурт)]] -> 1,982 | J18: =tblЗбут[[#This Row],[Продано одиниць (роздріб)]]*tblЗбут[[#This Row],[Роздрібна ціна за одиницю товару]]+tblЗбут[[#This Row],[Продано одиниць (гурт)]]*tblЗбут[[#This Row],[Гуртова ціна за одиницю товару*]] -> 157,936₴
B19: 1 | C19: =IFERROR(IF(tblЗбут[[#This Row],[Код товару]]<>"",VLOOKUP(tblЗбут[Код товару],tblПродукти[[Код товару]:[Назва]],2,FALSE),""),"Невідомий ідентифікатор продукту") -> Сорочки | D19: 2012-03-31 | E19: 38 | F19: 28₴ | G19: 973 | H19: 1,415 | I19: =tblЗбут[[#This Row],[Продано одиниць (роздріб)]]+tblЗбут[[#This Row],[Продано одиниць (гурт)]] -> 2,388 | J19: =tblЗбут[[#This Row],[Продано одиниць (роздріб)]]*tblЗбут[[#This Row],[Роздрібна ціна за одиницю товару]]+tblЗбут[[#This Row],[Продано одиниць (гурт)]]*tblЗбут[[#This Row],[Гуртова ціна за одиницю товару*]] -> 76,594₴
B20: 2 | C20: =IFERROR(IF(tblЗбут[[#This Row],[Код товару]]<>"",VLOOKUP(tblЗбут[Код товару],tblПродукти[[Код товару]:[Назва]],2,FALSE),""),"Невідомий ідентифікатор продукту") -> Сандалі | D20: 2012-03-31 | E20: 50 | F20: 36₴ | G20: 672 | H20: 1,105 | I20: =tblЗбут[[#This Row],[Продано одиниць (роздріб)]]+tblЗбут[[#This Row],[Продано одиниць (гурт)]] -> 1,777 | J20: =tblЗбут[[#This Row],[Продано одиниць (роздріб)]]*tblЗбут[[#This Row],[Роздрібна ціна за одиницю товару]]+tblЗбут[[#This Row],[Продано одиниць (гурт)]]*tblЗбут[[#This Row],[Гуртова ціна за одиницю товару*]] -> 73,380₴
B21: 3 | C21: =IFERROR(IF(tblЗбут[[#This Row],[Код товару]]<>"",VLOOKUP(tblЗбут[Код товару],tblПродукти[[Код товару]:[Назва]],2,FALSE),""),"Невідомий ідентифікатор продукту") -> Парасольки | D21: 2012-03-31 | E21: 24 | F21: 23₴ | G21: 769 | H21: 1,629 | I21: =tblЗбут[[#This Row],[Продано одиниць (роздріб)]]+tblЗбут[[#This Row],[Продано одиниць (гурт)]] -> 2,398 | J21: =tblЗбут[[#This Row],[Продано одиниць (роздріб)]]*tblЗбут[[#This Row],[Роздрібна ціна за одиницю товару]]+tblЗбут[[#This Row],[Продано одиниць (гурт)]]*tblЗбут[[#This Row],[Гуртова ціна за одиницю товару*]] -> 55,923₴
B22: 4 | C22: =IFERROR(IF(tblЗбут[[#This Row],[Код товару]]<>"",VLOOKUP(tblЗбут[Код товару],tblПродукти[[Код товару]:[Назва]],2,FALSE),""),"Невідомий ідентифікатор продукту") -> Пляшки для води | D22: 2012-03-31 | E22: 72 | F22: 57₴ | G22: 985 | H22: 1,848 | I22: =tblЗбут[[#This Row],[Продано одиниць (роздріб)]]+tblЗбут[[#This Row],[Продано одиниць (гурт)]] -> 2,833 | J22: =tblЗбут[[#This Row],[Продано одиниць (роздріб)]]*tblЗбут[[#This Row],[Роздрібна ціна за одиницю товару]]+tblЗбут[[#This Row],[Продано одиниць (гурт)]]*tblЗбут[[#This Row],[Гуртова ціна за одиницю товару*]] -> 176,256₴
B23: 5 | C23: =IFERROR(IF(tblЗбут[[#This Row],[Код товару]]<>"",VLOOKUP(tblЗбут[Код товару],tblПродукти[[Код товару]:[Назва]],2,FALSE),""),"Невідомий ідентифікатор продукту") -> Шорти | D23: 2012-03-31 | E23: 85 | F23: 43₴ | G23: 721 | H23: 1,426 | I23: =tblЗбут[[#This Row],[Продано одиниць (роздріб)]]+tblЗбут[[#This Row],[Продано одиниць (гурт)]] -> 2,147 | J23: =tblЗбут[[#This Row],[Продано одиниць (роздріб)]]*tblЗбут[[#This Row],[Роздрібна ціна за одиницю товару]]+tblЗбут[[#This Row],[Продано одиниць (гурт)]]*tblЗбут[[#This Row],[Гуртова ціна за одиницю товару*]] -> 122,603₴
B24: 1 | C24: =IFERROR(IF(tblЗбут[[#This Row],[Код товару]]<>"",VLOOKUP(tblЗбут[Код товару],tblПродукти[[Код товару]:[Назва]],2,FALSE),""),"Невідомий ідентифікатор продукту") -> Сорочки | D24: 2012-04-30 | E24: 91 | F24: 65₴ | G24: 603 | H24: 1,226 | I24: =tblЗбут[[#This Row],[Продано одиниць (роздріб)]]+tblЗбут[[#This Row],[Продано одиниць (гурт)]] -> 1,829 | J24: =tblЗбут[[#This Row],[Продано одиниць (роздріб)]]*tblЗбут[[#This Row],[Роздрібна ціна за одиницю товару]]+tblЗбут[[#This Row],[Продано одиниць (гурт)]]*tblЗбут[[#This Row],[Гуртова ціна за одиницю товару*]] -> 134,563₴
B25: 2 | C25: =IFERROR(IF(tblЗбут[[#This Row],[Код товару]]<>"",VLOOKUP(tblЗбут[Код товару],tblПродукти[[Код товару]:[Назва]],2,FALSE),""),"Невідомий ідентифікатор продукту") -> Сандалі | D25: 2012-04-30 | E25: 91 | F25: 55₴ | G25: 892 | H25: 1,823 | I25: =tblЗбут[[#This Row],[Продано одиниць (роздріб)]]+tblЗбут[[#This Row],[Продано одиниць (гурт)]] -> 2,715 | J25: =tblЗбут[[#This Row],[Продано одиниць (роздріб)]]*tblЗбут[[#This Row],[Роздрібна ціна за одиницю товару]]+tblЗбут[[#This Row],[Продано одиниць (гурт)]]*tblЗбут[[#This Row],[Гуртова ціна за одиницю товару*]] -> 181,437₴
B26: 3 | C26: =IFERROR(IF(tblЗбут[[#This Row],[Код товару]]<>"",VLOOKUP(tblЗбут[Код товару],tblПродукти[[Код товару]:[Назва]],2,FALSE),""),"Невідомий ідентифікатор продукту") -> Парасольки | D26: 2012-04-30 | E26: 42 | F26: 42₴ | G26: 611 | H26: 1,181 | I26: =tblЗбут[[#This Row],[Продано одиниць (роздріб)]]+tblЗбут[[#This Row],[Продано одиниць (гурт)]] -> 1,792 | J26: =tblЗбут[[#This Row],[Продано одиниць (роздріб)]]*tblЗбут[[#This Row],[Роздрібна ціна за одиницю товару]]+tblЗбут[[#This Row],[Продано одиниць (гурт)]]*tblЗбут[[#This Row],[Гуртова ціна за одиницю товару*]] -> 75,264₴
B27: 4 | C27: =IFERROR(IF(tblЗбут[[#This Row],[Код товару]]<>"",VLOOKUP(tblЗбут[Код товару],tblПродукти[[Код товару]:[Назва]],2,FALSE),""),"Невідомий ідентифікатор продукту") -> Пляшки для води | D27: 2012-04-30 | E27: 85 | F27: 43₴ | G27: 530 | H27: 1,039 | I27: =tblЗбут[[#This Row],[Продано одиниць (роздріб)]]+tblЗбут[[#This Row],[Продано одиниць (гурт)]] -> 1,569 | J27: =tblЗбут[[#This Row],[Продано одиниць (роздріб)]]*tblЗбут[[#This Row],[Роздрібна ціна за одиницю товару]]+tblЗбут[[#This Row],[Продано одиниць (гурт)]]*tblЗбут[[#This Row],[Гуртова ціна за одиницю товару*]] -> 89,727₴
B28: 5 | C28: =IFERROR(IF(tblЗбут[[#This Row],[Код товару]]<>"",VLOOKUP(tblЗбут[Код товару],tblПродукти[[Код товару]:[Назва]],2,FALSE),""),"Невідомий ідентифікатор продукту") -> Шорти | D28: 2012-04-30 | E28: 82 | F28: 71₴ | G28: 716 | H28: 1,249 | I28: =tblЗбут[[#This Row],[Продано одиниць (роздріб)]]+tblЗбут[[#This Row],[Продано одиниць (гурт)]] -> 1,965 | J28: =tblЗбут[[#This Row],[Продано одиниць (роздріб)]]*tblЗбут[[#This Row],[Роздрібна ціна за одиницю товару]]+tblЗбут[[#This Row],[Продано одиниць (гурт)]]*tblЗбут[[#This Row],[Гуртова ціна за одиницю товару*]] -> 147,391₴
B29: 1 | C29: =IFERROR(IF(tblЗбут[[#This Row],[Код товару]]<>"",VLOOKUP(tblЗбут[Код товару],tblПродукти[[Код товару]:[Назва]],2,FALSE),""),"Невідомий ідентифікатор продукту") -> Сорочки | D29: 2012-05-14 | E29: 34 | F29: 31₴ | G29: 850 | H29: 1,548 | I29: =tblЗбут[[#This Row],[Продано одиниць (роздріб)]]+tblЗбут[[#This Row],[Продано одиниць (гурт)]] -> 2,398 | J29: =tblЗбут[[#This Row],[Продано одиниць (роздріб)]]*tblЗбут[[#This Row],[Роздрібна ціна за одиницю товару]]+tblЗбут[[#This Row],[Продано одиниць (гурт)]]*tblЗбут[[#This Row],[Гуртова ціна за одиницю товару*]] -> 76,888₴
B30: 2 | C30: =IFERROR(IF(tblЗбут[[#This Row],[Код товару]]<>"",VLOOKUP(tblЗбут[Код товару],tblПродукти[[Код товару]:[Назва]],2,FALSE),""),"Невідомий ідентифікатор продукту") -> Сандалі | D30: 2012-05-14 | E30: 64 | F30: 40₴ | G30: 876 | H30: 1,663 | I30: =tblЗбут[[#This Row],[Продано одиниць (роздріб)]]+tblЗбут[[#This Row],[Продано одиниць (гурт)]] -> 2,539 | J30: =tblЗбут[[#This Row],[Продано одиниць (роздріб)]]*tblЗбут[[#This Row],[Роздрібна ціна за одиницю товару]]+tblЗбут[[#This Row],[Продано одиниць (гурт)]]*tblЗбут[[#This Row],[Гуртова ціна за одиницю товару*]] -> 122,584₴
B31: 3 | C31: =IFERROR(IF(tblЗбут[[#This Row],[Код товару]]<>"",VLOOKUP(tblЗбут[Код товару],tblПродукти[[Код товару]:[Назва]],2,FALSE),""),"Невідомий ідентифікатор продукту") -> Парасольки | D31: 2012-05-14 | E31: 33 | F31: 30₴ | G31: 881 | H31: 1,149 | I31: =tblЗбут[[#This Row],[Продано одиниць (роздріб)]]+tblЗбут[[#This Row],[Продано одиниць (гурт)]] -> 2,030 | J31: =tblЗбут[[#This Row],[Продано одиниць (роздріб)]]*tblЗбут[[#This Row],[Роздрібна ціна за одиницю товару]]+tblЗбут[[#This Row],[Продано одиниць (гурт)]]*tblЗбут[[#This Row],[Гуртова ціна за одиницю товару*]] -> 63,543₴
B32: 4 | C32: =IFERROR(IF(tblЗбут[[#This Row],[Код товару]]<>"",VLOOKUP(tblЗбут[Код товару],tblПродукти[[Код товару]:[Назва]],2,FALSE),""),"Невідомий ідентифікатор продукту") -> Пляшки для води | D32: 2012-05-14 | E32: 29 | F32: 27₴ | G32: 802 | H32: 1,548 | I32: =tblЗбут[[#This Row],[Продано одиниць (роздріб)]]+tblЗбут[[#This Row],[Продано одиниць (гурт)]] -> 2,350 | J32: =tblЗбут[[#This Row],[Продано одиниць (роздріб)]]*tblЗбут[[#This Row],[Роздрібна ціна за одиницю товару]]+tblЗбут[[#This Row],[Продано одиниць (гурт)]]*tblЗбут[[#This Row],[Гуртова ціна за одиницю товару*]] -> 65,054₴
B33: 5 | C33: =IFERROR(IF(tblЗбут[[#This Row],[Код товару]]<>"",VLOOKUP(tblЗбут[Код товару],tblПродукти[[Код товару]:[Назва]],2,FALSE),""),"Невідомий ідентифікатор продукту") -> Шорти | D33: 2013-12-11 | E33: 24 | F33: 15₴ | G33: 824 | H33: 1,994 | I33: =tblЗбут[[#This Row],[Продано одиниць (роздріб)]]+tblЗбут[[#This Row],[Продано одиниць (гурт)]] -> 2,818 | J33: =tblЗбут[[#This Row],[Продано одиниць (роздріб)]]*tblЗбут[[#This Row],[Роздрібна ціна за одиницю товару]]+tblЗбут[[#This Row],[Продано одиниць (гурт)]]*tblЗбут[[#This Row],[Гуртова ціна за одиницю товару*]] -> 49,686₴

Sheet Прейскурант
B1: Прейскурант на товари
B3: Видавництво «Фабрика пригод»
B4: вул. Маркова, 45
B5: 3345 м. Калуш
B6: Тел: (425) 555-0150
B7: Факс: (425) 555-0152
B8: www.adventure-works.com | F8: Останнє оновлення 15.08.2013
B10: Код товару | C10: Назва | D10: Опис | E10: Роздрібна ціна за одиницю товару | F10: Гуртова ціна за одиницю товару*
B11: 1 | C11: Сорочки | D11: Відчувайте прохолоду протягом усього літа в наших гофрованих сорочках із 100% бавовни. | E11: 22₴ | F11: 15.00₴
B12: 2 | C12: Сандалі | D12: Взуйте наші сандалі підвищеної міцності на каучуковій підошві та легко пройдіть по найгарячішому піску. | E12: 10₴ | F12: 6.00₴
B13: 3 | C13: Парасольки | D13: Сховайтеся від сонця під нашими надзвичайно великим пляжними парасольками, які блокують 96% шкідливих УФ променів. | E13: 30₴ | F13: 20.00₴
B14: 4 | C14: Пляшки для води | D14: Утамуйте спрагу водою ідеальної температури з наших термоізольованих пляшок для води. | E14: 7₴ | F14: 5.00₴
B15: 5 | C15: Шорти | D15: У наших нейлонових шортах, що сохнуть за кілька секунд, можна вийти з води й відразу сісти в автомобіль. | E15: 15₴ | F15: 8.00₴
F17: Зателефонуйте нам, щоб отримати відомості про продукцію, відсутню у списку.
F18: *Гуртові ціни застосовуються до кількості товару у 12 одиниць і більше.

Sheet Зведення стандартних цін (hidden)
B1: Зведена таблиця стандартних цін
B2: Цей аркуш має бути прихований. Змінення зведеної таблиці нижче може призвести до помилок у звіті про продаж товарів.
B3: Вибраний товар: | C3: =IF(LEN(B5),B5,"None") -> Парасольки
B4: Назва товару | C4: Роздрібна ціна за одиницю товару | D4: Сума загальних продажів (кількість)
B5: Парасольки | C5: 24₴ | D5: 2398
C6: 33₴ | D6: 2030
C7: 34₴ | D7: 2055
C8: 42₴ | D8: 1792
C9: 63₴ | D9: 2204
C10: 92₴ | D10: 2222

Sheet Зведення тенденцій збуту (hidden)
B1: Зведена таблиця тенденцій збуту
B2: Цей аркуш має бути прихований. Змінення зведеної таблиці нижче може призвести до помилок у звіті про продаж товарів.
B3: Сума загальних продажів (кількість) | C3: Назва товару
B4: Дата ціни | C4: Парасольки
B5: Січ | C5: 2204
B6: Лют | C6: 4277
B7: Бер | C7: 2398
B8: Кві | C8: 1792
B9: Тра | C9: 2030
